Cogmind - Beta 14 @@@ ROGUE MODE // 2024.08.27 @ 03:58:48 Player: Abkaal Result: Destroyed by TB-Z2Y(R) with Subdweller Beam Cannon Performance ------------- Evolutions (0) 0 Regions Visited (2) 400 Robots Destroyed (29) 145 Value Destroyed (532) 532 Prototype IDs (5) 100 Alien Tech Used (0) 0 Bonus (0) 0 TOTAL SCORE: 1177 Bonus ------- None Cogmind --------- Core Integrity 0/250 Matter 239/300 Energy 125/125 System Corruption 0% Temperature Cool (9) Movement Core (300) Ox5 Location -10/Subcaves Parts ------- > --- POWER (1) -------- Light Ion Engine > --- PROPULSION (2) --- (None) > --- UTILITY (2) ------ Medium Storage Unit Signal Interpreter > --- WEAPON (2) ------- Particle Gun Hammer > --- INVENTORY (10) --- Flight Unit Flight Unit Weight Redist. System Improved Terrain Scanner Light Armor Plating Authchip [R/Combat] Authchip [Storage] Assault Rifle Peak State ------------ > --- POWER ------------ Ion Engine > --- PROPULSION ------- Wheel Compact Wheel > --- UTILITY ---------- Medium Storage Unit Improved Terrain Scanner > --- WEAPON ----------- Assault Rifle Assault Rifle > --- INVENTORY -------- Light Ion Engine Light Treads Light Treads Wheel Signal Interpreter Authchip [R/Combat] Authchip [R/Combat] Authchip [R/Combat] Authchip [Storage] Grenade Launcher [Rating: 11] Favorites ----------- Power Ion Engine Engine Ion Engine Propulsion Hover Unit Wheel Compact Wheel Hover Unit Hover Unit Utility Medium Storage Unit Device Improved Terrain Scanner Storage Medium Storage Unit Processor Signal Interpreter Weapon Assault Rifle Energy Gun Particle Gun Ballistic Gun Assault Rifle Launcher Grenade Launcher Impact Weapon Hammer Build | -11 -10 -10 ------- Run | Yrd Mat Sub Slots Evolved . | . . . Power . | . . . Propulsion . | . . . Utility . | . . . Weapon . | . . . Parts Attached 24 | 9 12 3 Power 2 | 1 1 . Engine 2 | 1 1 . Core . | . . . Reactor . | . . . Propulsion 7 | 2 4 1 Treads . | . . . Leg . | . . . Wheel 4 | 2 2 . Hover 3 | . 2 1 Flight . | . . . Utility 5 | 3 2 . Device 2 | 2 . . Storage 2 | 1 1 . Processor 1 | . 1 . Hackware . | . . . Protection . | . . . Artifact . | . . . Weapon 10 | 3 5 2 Energy Gun 3 | 1 1 1 Energy Cannon . | . . . Ballistic Gun 3 | 2 1 . Ballistic Cannon . | . . . Launcher 1 | . . 1 Special Weapon . | . . . Impact Weapon 3 | . 3 . Slashing Weapon . | . . . Piercing Weapon . | . . . Special Melee Weapon . | . . . Unidentified Prototypes . | . . . Parts Lost 7 | . 3 4 Power . | . . . Propulsion 4 | . 1 3 Utility 1 | . 1 . Weapon 2 | . 1 1 Highest Loss Streak 2 | . 2 2 To Critical Strikes . | . . . Average Slot Usage (%) 97 | . 98 96 Engine 14 | . 14 14 Wheel 13 | . 14 . Hover 13 | . 12 25 Device 3 | . 4 . Storage 14 | . 14 14 Processor 10 | . 9 14 Energy Gun 7 | . 6 10 Ballistic Gun 10 | . 10 . Impact Weapon 9 | . 9 14 Peak Build Rating 11 | 9 11 9 Average Rating 8 | 6 9 8 On Entrance 6 | . 9 9 Naked Turns . | . . . Heaviest Build 20 | 15 20 18 Greatest Support 32 | 26 32 12 Greatest Overweight (x) 2 | 2 1 2 Average Overweight (x) . | . . 1 Largest Inventory Capacity 10 | 8 10 10 Average Capacity 9 | 7 9 10 Most Carried 10 | 8 10 10 Average Carried 9 | 5 9 8 Final Capacity 10 | 8 10 10 Final Carried 10 | 8 10 8 Class Distribution -------------------- 59% | Mutant 40% | Scavenger-Mutant Dominant Class ---------------- Mutant | -10/Materials Mutant | -10/Subcaves Resources | -11 -10 -10 ----------- Run | Yrd Mat Sub Matter Collected 738 | 331 388 19 Remotely . | . . . Salvage Created 1059 | 100 921 38 Parts 54 | 8 41 5 Haulers Intercepted 1 | . 1 . Recyclers Shooed 4 | . 4 . Parts Field Recycled . | . . . Retrieved Matter . | . . . Parts Self-Destructed 8 | . . 8 Prevented . | . . . Kills | -11 -10 -10 ------- Run | Yrd Mat Sub Combat Hostiles Destroyed 16 | . 13 3 Melee 4 | . 3 1 Guns 10 | . 8 2 Classes Destroyed 7 | 2 5 . Builder 1 | . 1 . Tunneler 3 | 3 . . Hauler 1 | . 1 . Recycler 5 | 1 4 . Watcher 3 | . 3 . Swarmer 6 | . 3 3 Grunt 10 | . 10 . Best Kill Streak 5 | 3 5 3 Combat Bots Only 5 | . 5 3 Max Kills in Single Turn 2 | 1 2 1 Gunslinging . | . . . Exploded . | . . . Melee 1 | . 1 1 Uniques/NPCs Destroyed . | . . . Combat | -11 -10 -10 -------- Run | Yrd Mat Sub Hostile Shots Fired 154 | . 62 92 Missed 61 | . 18 43 Damage Taken 816 | . 484 332 Core 255 | . 140 115 Absorbed by Shields . | . . . Regen/Repaired (Parts) 27 | . 27 . Core Remaining (%) 100 | 100 . . Volleys Fired 82 | 13 56 13 Largest 2 | 2 2 1 Hottest 70 | 70 65 65 Shots Fired 129 | 26 90 13 Gun 122 | 26 90 6 Cannon . | . . . Launcher 7 | . . 7 Special . | . . . Kinetic 108 | 21 87 . Thermal 14 | 5 3 6 Explosive 7 | . . 7 Electromagnetic . | . . . Robot Hit Streak 15 | 15 14 4 Robot Miss Streak 4 | 4 2 2 Penetration Max . | . . . Secondary Targets 2 | . 2 . Max Gunslinging Chain 1 | . 1 . Shots Hit Robots 99 | 19 75 5 Core Hits 41 | 5 29 7 Critical Kills 1 | . 1 . Critical Parts Destroyed 5 | . 5 . Critical Strikes 6 | . 6 . Destroy 3 | . 3 . Smash 3 | . 3 . Melee Attacks 13 | . 12 1 Impact 13 | . 12 1 Slashing . | . . . Piercing . | . . . Sneak Attacks 2 | . 2 . Combat Hostiles . | . . . Follow-up Attacks . | . . . Damage Inflicted 1878 | 252 1280 346 Guns 1226 | 252 892 82 Cannons . | . . . Explosions 235 | . . 235 Melee 417 | . 388 29 Ramming . | . . . Kinetic 1030 | 190 840 . Thermal 196 | 62 52 82 Explosive 235 | . . 235 Electromagnetic . | . . . Impact 417 | . 388 29 Slashing . | . . . Piercing . | . . . Highest Corruption . | . . . Average Corruption . | . . . Corruption Purged . | . . . Corruption Blocked . | . . . Overload Shots . | . . . Overflow Damage 110 | . 101 9 Projectiles . | . . . Explosions . | . . . Melee 110 | . 101 9 Knockbacks 1 | . 1 . Impact 1 | . 1 . Kinetic . | . . . Secondary . | . . . Self-Inflicted Damage 40 | . . 40 Shots 1 | . . 1 Rammed . | . . . Targets Rammed . | . . . Kicked . | . . . Crushed . | . . . Highest Temperature 72 | 47 72 . Average Temperature 22 | 16 32 . Received Heat Transfer 381 | . 225 156 Siege Activations . | . . . Robots Corrupted 4 | . 4 . Combat Hostiles 2 | . 2 . Parts Fried 3 | . 3 . Impact Corruptions 7 | . 6 1 Robots Melted . | . . . Combat Hostiles . | . . . Parts Melted . | . . . Heat Transferred 481 | 185 111 185 Parts Sabotaged . | . . . Parts Stolen . | . . . Parts Stripped . | . . . Power Chain Reactions . | . . . Alert | -11 -10 -10 ------- Run | Yrd Mat Sub Peak Influence 285 | 20 285 . Initial 13 | . 13 . Average 95 | 8 103 . Maximum Alert Level 1 | . 1 . Low Security (%) 87 | 100 86 . Level 1 12 | . 13 . Level 2 . | . . . Level 3 . | . . . Level 4 . | . . . Level 5 . | . . . High Security . | . . . Max Security . | . . . Squads Dispatched 4 | . 4 . Investigation 4 | . 4 . Extermination . | . . . Reinforcement . | . . . Assault . | . . . Garrison . | . . . Intercept . | . . . Searches Triggered . | . . . Construction Impeded . | . . . Haulers Reinforced . | . . . Active Scanning Responses . | . . . Cargo Convoy Interrupts . | . . . Stealth | -11 -10 -10 --------- Run | Yrd Mat Sub Distress Signals . | . . . Communications Jammed . | . . . Distress Signals . | . . . Times Spotted 42 | . 24 18 Peak Tracking Total 7 | . 7 6 Tactical Retreats 9 | . 3 6 Traps | -11 -10 -10 ------- Run | Yrd Mat Sub Traps Triggered 1 | . 1 . Indirectly . | . . . Trap Hack Attempts . | . . . Triggered . | . . . Disarmed . | . . . Reprogrammed . | . . . Reused . | . . . Traps Extracted . | . . . Installed . | . . . Triggered . | . . . Machines | -11 -10 -10 ---------- Run | Yrd Mat Sub Machines Disabled 4 | . . 4 Max in Single Turn 2 | . . 2 Machines Repaired . | . . . Machines Dismantled . | . . . Machines Sabotaged . | . . . Overloaded Fab Kills . | . . . Hacking | -11 -10 -10 --------- Run | Yrd Mat Sub Machines Accessed 11 | . 11 . Terminals 8 | . 8 . Fabricators . | . . . Repair Stations 1 | . 1 . Recycling Units 2 | . 2 . Scanalyzers . | . . . Garrison Access . | . . . Total Hacks 42 | . 42 . Successful 25 | . 25 . Failed 16 | . 16 . Catastrophic 1 | . 1 . Database Lockouts 1 | . 1 . Manual 21 | . 21 . Terminals 31 | . 31 . Fabricators . | . . . Repair Stations 4 | . 4 . Recycling Units 7 | . 7 . Scanalyzers . | . . . Garrison Access . | . . . Terminal Hacks 13 | . 13 . Part Schematic 2 | . 2 . Robot Analysis 6 | . 6 . Prototype ID Bank 3 | . 3 . Unreport Threat 1 | . 1 . Hauler Manifests 1 | . 1 . Fabricator Hacks . | . . . Repair Station Hacks 3 | . 3 . Scan Component 2 | . 2 . Repair 1 | . 1 . Recycling Unit Hacks 6 | . 6 . Report Inventory 2 | . 2 . Retrieve Components 4 | . 4 . Scanalyzer . | . . . Garrison Access Hacks . | . . . Unauthorized Hacks 3 | . 3 . Terminals 3 | . 3 . Botnet 3 | . 3 . Fabricators . | . . . Repair Stations . | . . . Recycling Units . | . . . Scanalyzers . | . . . Garrison Access . | . . . Data Cores Recovered . | . . . Used . | . . . Hacking Detections 10 | . 10 . Full Trace Events 6 | . 6 . Feedback Events . | . . . Feedback Blocked . | . . . Robot Schematics Acquired . | . . . Robots Built . | . . . Authchips . | . . . Time . | . . . Total Robot Build Rating . | . . . Part Schematics Acquired 2 | . 2 . Parts Built . | . . . Authchips . | . . . Time . | . . . Total Part Build Rating . | . . . Parts Repaired 1 | . 1 . Time 26 | . 26 . Parts Recycled . | . . . Recycled Matter . | . . . Retrieved Matter . | . . . Retrieved Components 23 | . 23 . Parts Scanalyzed . | . . . Part Schematics Acquired . | . . . Parts Damaged . | . . . Bothacking | -11 -10 -10 ------------ Run | Yrd Mat Sub Used RIF Installer . | . . . Robots Hacked . | . . . Non-combat . | . . . Combat . | . . . Robot Hacks Applied . | . . . Relay Couplers Released . | . . . Fabnet Peak Effective % . | . . . Robots Rewired . | . . . Allies Hacked . | . . . Hacks Repelled . | . . . Allies | -11 -10 -10 -------- Run | Yrd Mat Sub Total Allies . | . . . Largest Group . | . . . Highest-Rated Group . | . . . Highest-Rated Ally . | . . . Total Orders . | . . . Ally Attacks . | . . . Total Damage . | . . . Kills . | . . . Allies Corrupted . | . . . Allies Melted . | . . . Intel | -11 -10 -10 ------- Run | Yrd Mat Sub Robot Analysis Total 6 | . 6 . Derelict Logs Recovered . | . . . Drone Launches . | . . . Drone Recoveries . | . . . Exploration | -11 -10 -10 ------------- Run | Yrd Mat Sub Turns Passed 1530 | 128 1286 116 Spaces Moved 1065 | 64 941 60 Core 9 | 9 . . Treads . | . . . Legs . | . . . Wheels 508 | 55 453 . Hover 548 | . 488 60 Flight . | . . . Fastest Speed 50 | 50 90 116 Average Speed 105 | 90 105 119 Slowest Speed 180 | 150 116 180 Overloaded Moves . | . . . Propulsion Burnouts . | . . . Robots Hopped . | . . . Cave-ins Triggered . | . . . Exploration Rate (%) 35 | 4 99 3 Regions Visited 2 Branch Regions 1 Pre-discovered Areas . | . . . Known Exits Taken 1 | . 1 . Unknown Exits Taken 1 | 1 . . Scrap Searched . | . . . Spaces Dug . | . . . Terrain Destroyed 18 | . . 18 Melee . | . . . Projectile . | . . . AOE 18 | . . 18 Terrain Rammed . | . . . Walls Destroyed . | . . . Machines Disabled . | . . . Actions | -11 -10 -10 --------- Run | Yrd Mat Sub Total 1330 | 106 1135 89 Wait 95 | 10 73 12 Move 1063 | 63 940 60 Hop . | . . . Pick Up 29 | 8 21 . Fast Attach 12 | 8 4 . Attach 6 | . 4 2 Detach 1 | 1 . . Swap 6 | 1 4 1 Drop 23 | 2 21 . Fire 82 | 13 56 13 Melee 13 | . 12 1 Ram . | . . . Kick . | . . . Crush . | . . . Escape Stasis . | . . . Rewire . | . . . Trap . | . . . Miscellaneous . | . . . Route ------- -11/Scrapyard -10/Materials (discovered 6 exits: *Mat x3 / *Min x2 / *Sub) -10/Subcaves (discovered 1 exit: [*Rec]) History --------- Turn | Location | Event 20 | -11/Scrapyard | Discovered new exit (range 14) 129 | -11/Scrapyard | Entered Materials 303 | -10/Materials | Build established: Mutant 408 | -10/Materials | Discovered new exit (range 13) 454 | -10/Materials | Discovered new exit (range 10) 629 | -10/Materials | Derelicts attacked the area 679 | -10/Materials | Core integrity fell below 50% 777 | -10/Materials | Repaired Hammer 793 | -10/Materials | Discovered new exit (range 16) 1096 | -10/Materials | Discovered new exit (range 6) 1116 | -10/Materials | Build established: Scavenger-Mutant 1169 | -10/Materials | Discovered new exit (range 6) 1195 | -10/Materials | Identified exit to Materials 1275 | -10/Materials | Discovered new exit (range 8) 1282 | -10/Materials | Identified exit to Mines 1386 | -10/Materials | Central database locked down 1414 | -10/Materials | Identified exit to Subcaves 1415 | -10/Materials | Entered Subcaves 1438 | -10/Subcaves | Shifting Twisted Machinery released Mak. Power Source 1450 | -10/Subcaves | Discovered new exit (range 13) 1476 | -10/Subcaves | Core integrity fell below 20% 1531 | -10/Subcaves | Destroyed by TB-Z2Y(R) with Subdweller Beam Cannon Last Messages --------------- 01433_ Lgt. Ion Engine fries itself beyond repair. 01434_ Flight Unit fries itself beyond repair. 01435_ Lgt. Assault Rifle fries itself beyond repair. 01435_ Flight Unit fries itself beyond repair. 01435_ Acquired 10 matter. Mak. Power Source falls loose from the Twisted Machinery. 01441_ Acquired 9 matter. 01450_ EXIT=FOUND 01451_ Machine disabled. 01454_ The unstable cave ceiling collapses. 01454_ Hover Unit destroyed. 01455_ Machine disabled. 01457_ Grenade Launcher destroyed. 01478_ The unstable cave ceiling collapses. 01521_ 75-O2A(R) affixes Scrap Shield Fragment to Scrap Shield. 01529_ Hover Unit destroyed. Map ----- +----------------------------------------------------+ | ?????????????????????????????????????????????????? | | ?????????????????????????????????????????????????? | | ?????????????????????????????????????????????????? | | ?????????????????????????????????????????????????? | | ?????????????????????????????????????????????????? | | ?????????????????????????????????????????????????? | | ?????????????????????????????????????????????????? | | ?????????????????????????????????????????????????? | | ?????????????????????????????????????????????????? | | ??????????????????????##?????????? ??????????????? | | ?????????????????????? ????????? ????????????? | | ??????????????????????? ???????? ????????????? | | ??????????????????????? ?????### ?????????????? | | ??????????????????????? ##### ??????????????? | | ??????????????????????? ???????????????? | | ???????????????????????? ????????????????? | | ???????????????????????? #?????????????????? | | ???????????????????????? ??????????????????? | | ???????????????????????? ???????????????????? | | ???????????????????????## #????????????????????? | | ???????????????????????# ##?###??###???????????? | | ???????????????????????# ### #### #???????????? | | ???????????????????????## ### #???????????? | | ???????????????????????# ### ##???????????? | | ???????????????????????# # ##????????????? | | ???????????????????????##@ # % ##?????????????? | | ???????????????????????# % ##??????????????? | | ????????????????# RR " #???????????????? | | ????????????????# # " #???????????????? | | ???????????????#< << "" #?????????????? | | ??????????????#" # "" #?????????????? | | ??????????????# "#" " "????????????? | | ??????????????### R < "##" "???????????? | | ???????????????# R< R"#### * ??????????? | | ???????????????### #< ""???## "?????????? | | ?????????????????######?#####?????? " "????????? | | ??????????????????????????????????? ##????????? | | ????????????????????????????????????? #?????????? | | ?????????????????????????????????????????????????? | | ?????????????????????????????????????????????????? | | ?????????????????????????????????????????????????? | | ?????????????????????????????????????????????????? | | ?????????????????????????????????????????????????? | | ?????????????????????????????????????????????????? | | ?????????????????????????????????????????????????? | | ?????????????????????????????????????????????????? | | ?????????????????????????????????????????????????? | | ?????????????????????????????????????????????????? | | ?????????????????????????????????????????????????? | | ?????????????????????????????????????????????????? | +----------------------------------------------------+ Best States ------------- Heat Dissipation 25 Energy Generation 10 Energy Capacity 250 Matter Stores 300 Matter Capacity 300 Sight Range 16 Terrain Scan Range 16 Terrain Scan Density 10 Evasion (%) 42 Authchip Count 4 Item Schematics ----------------- Grenade Launcher | -10/Materials | Hacked Hover Unit | -10/Materials | Hacked Robot Schematics ------------------ None Fabricated ------------ Nothing Alien Tech Used ----------------- None Achievements -------------- None Challenges ------------ None Game ------ Seed ProcessingArmorLog Manual? 0 Play Time 00:19:56 Cumulative 48.2 hours Start 2024.08.27 @ 03:39:50 End 2024.08.27 @ 03:58:48 Sessions 1 Manual Loads 0 Difficulty Rogue Special Mode None Game No. 34 Rogue 34 Adventurer 0 Explorer 0 Win Type - Total 0 Types 0/0/0/0/0/0/0/0/0 Lore% 21 Gallery% 37 Achievement% 34 Wizard Run 0 Options --------- Layout 2 ASCII 0 Keyboard 1 Movement Numpad Keybinds 0 Fullscreen 1 Font 24/Smallcaps Map View 50x44 Zoom Use 0% Tactical HUD 1 Map Filters NONE Filters NONE Steam 1 RUN: aa689255-a4af-40e5-a828-42827bbb261b